bitfinex/quotes_ETHUSD_20251017
["timestamp","ask_amount","ask_price","bid_price","bid_amount"]
[1760700112591,0.44950001,3800.5,3800.1,0.1312]
[1760700112815,1e-08,3800.5,3800.1,0.1312]
[1760700113018,0.4495,3800.4,3798.2,2.63281578]
[1760700113219,0.2247,3799.5,3799.2,2.7633228]
[1760700113391,0.3559,3799.5,3797.5,2.63327969]
[1760700113595,0.1312,3799.6,3799.0,0.1322]
[1760700113819,0.1312,3799.6,3799.5,2.63192525]
[1760700114117,0.2247,3799.9,3799.5,2.63192525]
[1760700114118,0.2247,3799.9,3799.8,2.63171745]
[1760700114322,0.2247,3800.4,3799.2,2.63206543]
[1760700114484,0.4495,3799.8,3799.7,0.1312]
[1760700114687,0.4495,3799.8,3799.6,2.63183731]
[1760700114688,0.1312,3799.7,3799.6,2.63183731]
[1760700114886,0.5807,3799.7,3799.1,0.1312]
[1760700115083,0.4495,3800.3,3799.0,0.001]
[1760700115324,0.2247,3800.4,3800.3,2.6313712]
[1760700115536,1e-08,3800.5,3799.1,2.63219049]
[1760700115683,1e-08,3800.5,3800.3,2.6313712]
[1760700115887,1e-08,3800.5,3800.4,2.63130196]
[1760700116112,0.44950001,3800.5,3800.4,2.63130196]
[1760700116415,1e-08,3800.5,3800.4,2.63130196]
[1760700117712,1e-08,3800.5,3800.4,3.15757117]
[1760700118286,1e-08,3800.5,3800.4,9.00967318]
[1760700118489,1e-08,3800.5,3800.4,3.15757117]
[1760700118917,1e-08,3800.5,3800.4,2.63130196]
[1760700119117,1e-08,3800.5,3800.4,5.59874196]
[1760700119632,1e-08,3800.5,3800.4,5.86144196]
[1760700120344,1e-08,3800.5,3800.4,8.22304196]
[1760700120638,0.003,3803.2,3800.4,8.36874]
[1760700120816,0.003,3803.2,3800.2,3.155]
[1760700120817,0.0022,3803.2,3803.1,2.62943388]
[1760700121320,0.468,3803.2,3803.1,2.62943388]
[1760700121521,0.468,3803.2,3801.9,2.63026381]
[1760700121686,0.468,3803.2,3803.1,2.62943388]
[1760700121891,0.0022,3803.2,3803.1,2.62943388]
[1760700122251,0.468,3803.2,3803.1,2.62943388]
[1760700122753,0.468,3803.2,3802.9,2.62951052]
[1760700122918,0.4658,3803.1,3801.7,3.153]
[1760700123118,0.0022,3803.2,3800.1,0.468]
[1760700123119,0.2232,3801.8,3800.1,0.468]
[1760700123318,0.4658,3801.7,3799.0,2.63320513]
[1760700123556,0.4658,3801.7,3799.6,2.63185598]
[1760700123761,0.4658,3801.6,3799.5,2.215783]
[1760700124055,0.2232,3801.8,3801.0,2.63083213]
[1760700124355,0.4658,3801.7,3801.2,2.63073229]
[1760700124526,0.4658,3801.6,3800.4,2.63127641]
[1760700124849,0.4658,3801.6,3800.0,3.152]
[1760700124850,0.4658,3801.6,3801.2,2.63072139]
[1760700125054,0.1312,3801.1,3800.5,0.1312]
[1760700125361,0.1312,3801.1,3799.9,0.3697105]
[1760700125362,0.2232,3800.6,3800.1,0.1312]
[1760700125554,0.1312,3800.3,3799.7,2.63176855]
[1760700125851,0.1312,3799.7,3799.4,0.001]
[1760700126053,2.85497259,3799.8,3799.0,0.001]
[1760700126054,0.2232,3799.8,3799.0,0.001]
[1760700126357,0.4658,3799.6,3799.0,0.001]
[1760700126555,0.4658,3799.6,3797.1,0.82033588]
[1760700126722,0.2232,3799.8,3797.5,2.63328327]
[1760700126723,0.4658,3799.5,3797.5,2.63328327]
[1760700126925,0.2232,3799.8,3796.9,16.566759]
[1760700126926,0.4658,3799.4,3796.9,16.566759]
[1760700127230,0.6336,3799.0,3796.3,0.001]
[1760700127548,2.3616,3798.9,3796.3,0.001]
[1760700127723,0.4658,3798.9,3797.2,2.63349934]
[1760700127924,0.4658,3798.8,3797.3,0.0263345]
[1760700128261,0.4658,3798.8,3797.2,0.26334993]
[1760700128558,0.4658,3798.8,3796.3,0.001]
[1760700128559,0.4658,3798.8,3797.5,2.63331138]
[1760700128744,0.2232,3799.8,3799.7,2.63178672]
[1760700129062,0.2232,3800.6,3798.7,2.63247953]
[1760700129246,0.2232,3800.6,3798.9,2.63234094]
[1760700129452,0.2232,3800.6,3800.4,2.63128502]
[1760700129754,0.4658,3800.5,3798.9,3.15]
[1760700129956,0.2232,3801.1,3799.6,2.63182005]
[1760700130158,0.2232,3801.1,3799.7,0.02631786]
[1760700130359,0.2232,3801.1,3800.5,2.63122871]
[1760700130521,0.2232,3800.6,3799.0,0.315]
[1760700130724,0.4658,3800.5,3796.9,2.6336935]
[1760700130957,0.4658,3800.4,3797.5,2.63331138]
[1760700131125,0.4658,3800.4,3797.7,0.6336]
[1760700131326,0.4658,3800.4,3800.0,2.63154071]
[1760700131536,0.4658,3800.4,3798.2,2.63282607]
[1760700131537,0.4658,3800.3,3799.1,0.001]
[1760700131746,0.4658,3800.3,3799.9,2.6316399]
[1760700131940,0.4658,3800.2,3799.1,0.001]
[1760700132148,0.4658,3800.2,3799.3,2.63203876]
[1760700132343,0.4658,3800.2,3799.5,2.63185833]
[1760700132559,0.4658,3800.2,3799.1,0.001]
[1760700132560,0.4658,3800.2,3799.3,2.63204516]
[1760700132762,0.4658,3800.2,3799.1,0.001]
[1760700132946,0.4658,3800.2,3800.1,2.63150969]
[1760700133262,0.002,3800.5,3800.3,2.63136423]
[1760700133430,0.002,3800.5,3800.4,2.63130196]
[1760700133758,0.002,3800.5,3800.2,2.63138206]
[1760700133967,0.002,3800.5,3799.2,2.63213308]
[1760700134173,0.002,3800.5,3799.4,2.63199452]
[1760700134339,0.002,3800.5,3799.1,0.001]
[1760700134340,0.4658,3800.4,3799.1,0.001]
[1760700134540,0.4658,3800.4,3799.5,2.63186837]
[1760700134770,0.002,3800.5,3799.1,0.001]
[1760700135083,0.2232,3799.2,3798.7,0.001]
[1760700135238,0.689,3799.2,3798.7,0.001]
[1760700135437,0.4658,3799.1,3798.7,0.001]
[1760700135844,0.4658,3799.0,3798.7,0.001]
[1760700136048,0.1312,3798.8,3795.6,0.001]
[1760700136270,0.1312,3798.6,3796.9,0.1312]
[1760700136576,0.689,3798.7,3796.0,0.0315]
[1760700136760,0.1312,3797.7,3797.0,0.1312]
[1760700136934,0.1312,3797.7,3797.6,2.63324204]
[1760700137135,0.1312,3797.7,3797.0,0.1312]
[1760700137359,0.689,3797.6,3796.3,0.001]
[1760700137568,0.2232,3798.7,3796.3,0.02734143]
[1760700137783,0.2232,3798.7,3796.5,2.634005]
[1760700137784,0.4658,3798.6,3796.5,2.634005]
[1760700138079,0.4658,3798.6,3796.7,2.63386625]
[1760700138377,0.4658,3799.3,3796.9,0.6336]
[1760700138580,0.4658,3799.3,3797.3,1.728]
[1760700138879,0.4658,3799.3,3796.8,3.147]
[1760700138880,0.2232,3799.6,3797.8,6.407593]
[1760700139178,0.2232,3799.6,3797.4,0.6664251]
[1760700139179,0.2232,3799.6,3797.9,0.02633034]
[1760700139351,0.2232,3799.6,3797.8,3.147]
[1760700139547,0.4658,3799.9,3799.4,2.63198552]
[1760700139548,0.689,3799.9,3799.4,2.63198552]
[1760700139849,0.4658,3799.8,3799.3,2.63203196]
[1760700140181,0.4658,3799.7,3798.0,3.147]
[1760700140356,0.4658,3799.7,3799.2,2.63209452]
[1760700140678,0.4658,3799.7,3799.2,2.6320715]
[1760700140878,0.4658,3799.7,3798.2,2.63282607]
[1760700140879,0.4658,3799.7,3798.3,0.02632756]
[1760700141065,0.2232,3799.9,3799.5,2.63191849]
[1760700141267,0.2232,3799.9,3799.1,2.63214504]
[1760700141485,0.4658,3799.8,3796.2,2.63416689]
[1760700141779,0.4454,3799.7,3796.7,2.63386625]
[1760700141942,1.079,3799.6,3796.9,2.63372751]
[1760700142145,2.63215305,3799.2,3797.6,2.6331864]
[1760700142369,0.4454,3799.1,3796.7,2.63386625]
[1760700142583,0.4454,3799.7,3796.8,0.0315]
[1760700142769,0.002,3800.5,3797.0,30.0]
[1760700142948,0.002,3800.5,3797.4,0.6336]
[1760700143149,0.002,3800.5,3799.9,2.63158781]
[1760700143351,0.002,3800.5,3798.7,3.145]
[1760700143657,0.002,3800.5,3798.9,1.728]
[1760700143860,0.4454,3800.4,3799.2,2.63207692]
[1760700144175,0.30785726,3800.3,3799.6,2.63180745]
[1760700144485,0.4446,3800.4,3798.1,3.145]
[1760700144684,0.4446,3800.4,3798.4,1.728]
[1760700145044,0.002,3800.5,3798.6,2.63254883]
[1760700145245,0.002,3800.5,3799.7,2.63172073]
[1760700145582,0.002,3800.5,3799.8,2.63169032]
[1760700145878,0.002,3800.5,3798.7,2.63247953]
[1760700146046,0.002,3800.5,3799.2,2.63208523]
[1760700146249,0.002,3800.5,3800.2,2.63137334]
[1760700146456,0.002,3800.5,3799.1,2.63220236]
[1760700146457,0.002,3800.5,3800.3,2.63134742]
[1760700146669,0.002,3800.5,3800.4,2.63130196]
[1760700146883,0.002,3800.5,3799.1,1.728]
[1760700147087,0.002,3800.5,3799.2,0.4872]
[1760700147288,0.002,3800.5,3800.0,2.63154878]
[1760700147580,0.002,3800.5,3799.8,1.728]
[1760700147886,0.002,3800.5,3800.4,2.63130196]
[1760700148053,0.002,3800.5,3800.4,4.35930196]
[1760700148247,0.002,3800.9,3800.8,4.35902504]
[1760700148984,0.002,3800.9,3800.8,4.38932504]
[1760700149147,0.002,3800.9,3800.8,7.55763529]
[1760700149352,0.002,3800.9,3800.8,10.21952804]
[1760700150083,0.002,3800.9,3800.8,10.85312804]
[1760700150381,0.002,3800.9,3800.8,30.85342028]
[1760700150685,0.002,3800.9,3800.8,9.51334928]
[1760700150981,0.002,3800.9,3800.4,0.69906933]
[1760700151284,0.002,3800.9,3800.8,2.63102504]
[1760700151484,0.002,3800.9,3800.0,2.63157894]
[1760700151685,0.002,3800.9,3799.9,3.141]
[1760700152395,0.2325,3800.9,3799.3,3.14]
[1760700152573,0.2325,3800.9,3799.3,3.16632063]
[1760700152892,0.4454,3800.8,3799.3,3.14]
[1760700153405,0.4454,3800.8,3800.0,2.63152131]
[1760700153569,0.4454,3800.8,3799.2,2.63211579]
[1760700153769,0.4454,3800.8,3799.9,2.63164526]
[1760700153966,0.4454,3800.8,3799.5,2.63191294]
[1760700153967,3.0764905,3800.8,3799.5,2.63191294]
[1760700154173,3.0764905,3800.8,3798.9,0.26627044]
[1760700154174,0.4454,3800.8,3799.7,2.63178555]
[1760700154374,0.4454,3800.8,3798.9,0.26627044]
[1760700154375,3.07649485,3800.7,3798.8,2.63239255]
[1760700154696,0.4454,3800.6,3798.5,3.14]
[1760700154899,0.4454,3800.6,3798.6,0.02632548]
[1760700155075,0.4454,3800.6,3798.5,3.14]
[1760700155276,0.2325,3800.9,3798.6,0.57726551]
[1760700155277,0.4454,3800.5,3798.6,0.57726551]
[1760700155490,0.4454,3800.4,3798.1,0.001]
[1760700155692,0.4454,3800.4,3799.8,2.63165366]
[1760700156030,0.2325,3800.9,3799.7,2.63173617]
[1760700156166,0.4454,3800.6,3799.6,2.63185573]
[1760700156363,0.4454,3800.6,3798.6,4.36054427]
[1760700156595,0.4454,3800.6,3798.8,1.728]
[1760700156798,0.2325,3800.9,3800.0,2.63156816]
[1760700156999,0.2325,3800.9,3799.9,2.63163157]
[1760700157177,0.2325,3800.9,3799.0,1.728]
[1760700157377,0.002,3800.9,3799.4,2.341985]
[1760700157569,0.002,3800.9,3800.8,2.76222504]
[1760700158304,0.002,3800.9,3800.8,2.63102504]
[1760700159001,0.002,3800.9,3800.1,0.0303]
[1760700159180,0.002,3800.9,3800.8,2.63102504]
[1760700159720,0.002,3800.9,3799.4,0.0303]
[1760700159905,0.002,3800.9,3800.0,2.63156159]
[1760700160089,0.002,3800.9,3799.8,0.0303]
[1760700160290,0.002,3800.9,3800.7,2.6310784]
[1760700160812,0.002,3800.9,3800.6,2.63115193]
[1760700161014,0.002,3800.9,3800.7,2.63107159]
[1760700161220,0.002,3800.9,3796.5,0.2627]
[1760700161221,0.6759,3800.8,3799.1,0.3456]
[1760700161388,0.002,3800.9,3799.0,2.63227165]
[1760700161587,0.002,3800.9,3800.8,2.63102504]
[1760700161817,0.002,3800.9,3800.8,2.65733529]
[1760700162016,0.002,3800.9,3800.8,2.63102504]
[1760700163919,0.002,3800.9,3800.1,1.728]
[1760700164123,0.002,3800.9,3800.8,2.63102504]
[1760700166303,9.992,3800.9,3800.8,2.63102504]
[1760700166623,0.002,3801.3,3801.2,2.63074818]
[1760700167531,0.002,3801.3,3801.2,7.54835566]
[1760700167745,0.002,3801.3,3801.2,7.52204818]
[1760700167911,0.002,3801.3,3801.2,8.53733649]
[1760700168112,0.0012,3801.3,3801.2,8.53733649]
[1760700168318,0.002,3801.7,3801.2,20.55829249]
[1760700168564,0.1312,3803.4,3801.4,9.20647377]
[1760700168857,0.1312,3803.4,3802.8,0.1312]
[1760700169057,0.4476,3803.2,3801.6,1.728]
[1760700169354,0.4476,3803.2,3802.6,2.62974582]
[1760700169504,0.2305,3802.7,3801.7,2.80319972]
[1760700169844,0.6759,3802.7,3801.4,3.132]
[1760700170003,0.6759,3802.7,3802.1,2.63006677]
[1760700170534,0.2305,3802.7,3802.4,2.62990288]
[1760700170724,0.0022,3803.2,3802.5,0.02629848]
[1760700170923,0.0022,3803.2,3801.3,0.0303]
[1760700170924,0.2305,3802.6,3801.5,1.728]
[1760700171152,0.2305,3801.6,3798.3,2.63275675]
[1760700171351,0.2305,3801.6,3800.2,2.63138994]
[1760700171352,0.4454,3801.5,3800.2,2.63138994]
[1760700171533,0.2305,3801.6,3799.6,2.63180107]
[1760700171534,2.63085297,3801.1,3799.6,2.63180107]
[1760700171731,2.63095582,3800.9,3798.9,3.131]
[1760700171937,2.63134009,3800.4,3798.4,1.30580268]
[1760700172254,0.4694,3800.3,3798.2,3.131]
[1760700172561,2.63159716,3800.0,3798.6,2.63249091]
[1760700172781,0.7063,3799.9,3798.9,2.63233255]
[1760700172956,0.7063,3799.9,3798.2,3.131]
[1760700172957,0.2369,3800.3,3798.5,2.63261813]
[1760700173267,0.4694,3800.2,3799.0,2.63222217]
[1760700173466,0.4694,3800.2,3798.5,2.63261813]
[1760700173652,0.2369,3800.3,3798.7,2.63247953]
[1760700173962,0.2369,3800.3,3799.6,2.63179108]
[1760700174129,0.2369,3800.3,3798.8,1.7543241]
[1760700174130,0.2369,3800.3,3799.5,2.63189727]
[1760700174335,0.2369,3800.3,3798.8,4.858]
[1760700174587,0.4694,3800.2,3798.3,0.57648453]
[1760700174894,0.2369,3800.3,3798.6,2.63254883]
[1760700175031,0.2369,3800.8,3799.0,1.728]
[1760700175232,0.2369,3800.8,3799.1,3.129]
[1760700175434,0.2369,3800.8,3799.0,1.728]
[1760700175661,0.4694,3800.7,3799.1,3.129]
[1760700175869,0.2369,3800.8,3799.2,0.57612302]
[1760700176033,0.2369,3800.8,3799.4,2.63199452]
[1760700176243,0.4694,3801.2,3799.5,3.129]
[1760700176457,0.4694,3801.2,3800.1,2.63145812]
[1760700176656,0.4694,3801.2,3800.2,2.63139182]
[1760700176857,0.4694,3801.2,3800.3,2.63137]
[1760700177060,0.4694,3801.2,3799.2,2.30412302]
[1760700177061,0.4694,3801.2,3800.1,2.63148388]
[1760700177233,2.86098614,3801.6,3799.2,0.57612302]
[1760700177234,0.77940285,3801.1,3799.2,0.57612302]
[1760700177433,3.1002306,3801.1,3799.3,3.128]
[1760700177634,0.4694,3801.1,3799.3,3.128]
[1760700177833,0.4694,3801.1,3800.3,2.63131968]
[1760700178142,0.4694,3801.1,3800.3,2.63135991]
[1760700178678,2.86097974,3801.6,3796.5,3.1583]
[1760700178679,8.241888,3800.3,3796.5,3.1583]
[1760700178878,2.6316482,3799.9,3797.5,0.608]
[1760700179202,0.4694,3800.2,3797.7,2.63416551]
[1760700179402,2.63215447,3799.2,3797.7,0.001]
[1760700179723,0.7063,3799.8,3797.7,0.001]
[1760700179724,0.7063,3799.8,3798.2,2.63282607]
[1760700180071,3.10120801,3799.7,3798.1,2.63388852]
[1760700180272,0.4694,3799.6,3798.2,2.63281141]
[1760700180510,0.4694,3799.5,3798.3,2.63274401]
[1760700180689,2.63207826,3799.3,3798.1,2.63389128]
[1760700180901,3.10140819,3799.4,3798.1,0.001]
[1760700181198,0.57332695,3799.3,3798.2,2.63280696]
[1760700181404,0.57332695,3799.3,3798.3,2.6327517]
[1760700181606,0.4694,3799.4,3798.4,0.02632687]
[1760700181806,0.2369,3799.8,3798.2,2.63282607]
[1760700181969,0.2369,3799.8,3798.9,2.63232644]
[1760700182171,0.2369,3799.8,3798.1,4.36187439]
[1760700182372,0.2369,3800.4,3798.3,2.63275675]
[1760700182581,0.2369,3800.4,3799.7,2.63173312]
[1760700182781,0.2369,3800.4,3799.2,3.126]
[1760700183020,0.4656,3800.6,3799.8,2.6317045]
[1760700183177,0.4656,3800.6,3799.8,2.63169717]
[1760700183383,0.4656,3800.6,3799.4,2.63199452]
[1760700183616,0.64970926,3801.0,3799.5,0.6021187]
[1760700183782,0.2369,3801.0,3800.2,2.6314398]
[1760700183981,0.2369,3801.0,3800.0,3.126]
[1760700184183,0.2244,3799.6,3797.6,2.66348318]
[1760700184386,0.2244,3799.6,3798.5,2.63260769]
[1760700184634,0.97562245,3799.6,3797.7,0.001]
[1760700184787,0.97562245,3799.6,3798.5,2.63261471]
[1760700184788,0.2244,3799.6,3798.5,2.63261471]
[1760700184985,2.63151797,3800.1,3798.9,2.63228228]
[1760700185185,0.4656,3800.2,3798.8,2.63240962]
[1760700185419,0.4656,3800.2,3798.2,0.0303]
[1760700185717,3.09705284,3800.2,3798.2,2.66307678]
[1760700185919,1.728,3800.9,3798.1,2.6338678]
[1760700185920,0.2369,3801.0,3798.4,1.728]
[1760700186250,0.4656,3800.9,3798.3,0.52969446]
[1760700186428,2.63102504,3800.8,3799.6,2.63184678]
[1760700186729,0.4656,3800.9,3800.0,2.63153206]
[1760700186885,0.33332588,3800.9,3799.4,3.125]
[1760700187223,0.4676,3801.7,3799.5,2.6582445]
[1760700187525,0.4676,3801.7,3799.6,4.980544]
[1760700187693,0.4676,3801.7,3800.8,2.6309705]
[1760700188033,2.63054057,3801.5,3799.7,1.728]
[1760700188213,13.33369198,3799.8,3798.4,0.001]
[1760700188601,0.2244,3798.5,3798.4,0.001]
[1760700188798,0.45887679,3799.5,3798.4,0.001]
[1760700188999,2.85675478,3798.9,3798.4,0.001]
[1760700189225,2.63261813,3798.5,3798.4,0.001]
[1760700189523,2.63252565,3798.7,3796.6,2.63388277]
[1760700189524,2.63282607,3798.2,3796.6,2.63388277]
[1760700189697,2.63276436,3798.3,3796.4,3.123]
[1760700189898,3.40826251,3798.2,3796.4,5.75701274]
[1760700190104,3.40826251,3798.2,3796.7,2.63384075]
[1760700190309,3.40826251,3798.2,3796.6,2.63389518]
[1760700190499,3.40826251,3798.2,3796.7,2.63385467]
[1760700191194,0.41305435,3798.5,3796.4,3.123]
[1760700191400,0.41305435,3798.5,3797.4,2.63336434]
[1760700191599,0.41305435,3798.5,3796.8,0.0313]
[1760700191797,0.2244,3798.9,3797.1,3.122]
[1760700192115,0.63660649,3798.9,3798.1,2.63387741]
[1760700192317,0.63660649,3798.9,3798.1,0.001]
[1760700192710,0.4656,3800.7,3798.3,6.44129075]
[1760700193041,0.4656,3800.7,3799.5,2.63190963]
[1760700193243,13.10929198,3800.0,3797.3,0.001]
[1760700193410,0.4656,3800.6,3797.5,0.0321]
[1760700193599,0.69,3799.9,3797.5,0.0321]
[1760700193799,0.69,3799.9,3797.4,0.997]
[1760700194000,2.63247613,3798.8,3797.5,2.63329411]
[1760700194245,2.63277009,3798.3,3797.3,0.001]
[1760700194548,0.4656,3798.7,3797.3,2.63444767]
[1760700194704,3.09808171,3798.7,3797.5,2.63329846]
[1760700194900,0.4656,3798.7,3797.3,0.001]
[1760700195105,0.2244,3798.8,3797.3,0.001]
[1760700195322,2.85687522,3798.8,3797.5,2.63329993]
[1760700195541,0.59547469,3798.7,3797.3,0.001]
[1760700195831,0.2244,3798.8,3797.8,2.63303782]
[1760700196030,0.2244,3798.8,3797.3,2.63444041]
[1760700196230,0.2244,3798.8,3797.3,0.001]
[1760700196433,0.4656,3798.7,3797.3,0.001]
[1760700196636,0.2244,3799.3,3797.3,0.001]
[1760700196798,0.2244,3799.9,3797.8,2.63308902]
[1760700197002,0.41296249,3800.2,3799.2,2.63211269]
[1760700197199,0.41296249,3800.2,3799.1,2.63217254]
[1760700197559,0.30442737,3800.1,3798.3,2.63275675]
[1760700197762,0.30442737,3800.1,3799.3,2.63204396]
[1760700197939,0.4656,3800.5,3798.4,2.63268744]
[1760700198138,0.04588096,3801.1,3799.6,2.63184007]
[1760700198361,0.04588096,3801.1,3799.8,2.63166245]
[1760700198362,0.41282423,3800.8,3799.8,2.63166245]
[1760700198664,0.2244,3799.9,3797.3,2.63441924]
[1760700198958,2.85606746,3799.9,3798.1,2.63382877]
[1760700199157,0.1312,3798.9,3798.2,2.76401453]
[1760700199459,0.1312,3798.9,3798.2,0.1312]
[1760700199845,0.2244,3798.9,3798.1,0.001]
[1760700200358,2.63282607,3798.2,3798.1,0.001]
[1760700200662,3.15938234,3798.2,3798.1,0.001]
[1760700200955,3.62498234,3798.2,3798.1,0.001]
[1760700202931,2.63289539,3798.1,3797.7,0.001]
[1760700203276,2.63310337,3797.8,3797.7,0.001]
[1760700203478,2.6330355,3797.9,3797.7,0.001]
[1760700203632,0.4287,3798.0,3797.7,0.001]
[1760700204045,0.4287,3797.9,3797.7,0.001]
[1760700204434,0.2352,3798.5,3797.7,0.001]
[1760700204435,2.6328274,3798.2,3797.7,0.001]
[1760700204651,2.63289683,3798.1,3797.7,0.001]
[1760700204864,0.4287,3798.1,3797.7,0.001]
[1760700205070,3.06172961,3798.0,3797.7,0.001]
[1760700205271,2.63310337,3797.8,3797.7,0.001]
[1760700205584,0.99815805,3797.9,3797.7,0.001]
[1760700205751,2.63303444,3797.9,3797.7,0.001]
[1760700205953,0.4287,3798.4,3797.7,0.001]
[1760700206174,0.2352,3798.5,3797.7,0.001]
[1760700206370,2.63271207,3798.4,3797.7,0.001]
[1760700206553,2.63280731,3798.3,3797.7,0.001]
[1760700206753,0.6639,3798.5,3797.7,0.001]
[1760700206978,3.29652893,3798.5,3797.7,0.001]
[1760700207151,0.2352,3798.5,3797.7,0.001]
[1760700207353,0.2352,3798.5,3797.7,2.63411826]
[1760700207542,0.002,3798.2,3797.7,2.63411826]
[1760700207740,0.002,3798.2,3797.7,0.001]
[1760700208252,0.4287,3798.1,3797.7,0.001]
[1760700208440,2.63310337,3797.8,3797.7,0.001]
[1760700208641,3.06180337,3797.8,3797.7,0.001]
[1760700208952,3.06180337,3797.8,3797.3,0.001]
[1760700208953,2.63338073,3797.4,3797.3,0.001]
[1760700209153,2.63365815,3797.0,3796.9,0.001]
[1760700209371,0.52671832,3797.0,3796.9,0.001]
[1760700209577,3.06235815,3797.0,3796.9,0.001]
[1760700210168,3.69595815,3797.0,3796.9,0.001]
[1760700210345,3.26767438,3796.4,3795.6,0.001]
[1760700210549,2.63456016,3795.7,3795.6,0.001]
[1760700210878,0.2352,3795.8,3795.6,0.001]
[1760700211078,0.4287,3795.7,3795.6,0.001]
[1760700211284,2.31816589,3796.4,3795.6,0.001]
[1760700211285,0.2352,3797.0,3795.6,0.001]
[1760700211465,0.2352,3797.0,3795.6,2.63560206]
[1760700211676,2.86886703,3797.0,3795.8,2.63443551]
[1760700211867,0.2352,3797.0,3795.8,2.63449075]
[1760700212194,0.2352,3797.0,3795.6,0.001]
[1760700212346,1.0623,3796.9,3795.6,0.001]
[1760700212564,0.2352,3795.7,3795.6,0.001]
[1760700212898,2.63423837,3796.2,3795.6,0.001]
[1760700213268,2.63393562,3796.6,3795.6,0.001]
[1760700213497,0.39311649,3796.8,3795.6,0.001]
[1760700213699,0.4287,3796.9,3795.6,0.001]
[1760700213998,0.4287,3797.5,3795.7,2.63456016]
[1760700214199,0.4287,3797.5,3795.6,0.001]
[1760700214200,0.4287,3797.5,3796.1,2.63423228]
[1760700214499,0.4287,3797.4,3795.6,0.001]
[1760700214697,2.63353154,3797.2,3796.1,2.63427542]
[1760700214869,0.30622315,3797.1,3795.6,0.001]
[1760700215069,2.63371214,3797.0,3795.7,2.63450377]
[1760700215304,2.86892754,3796.9,3795.7,2.63450157]
[1760700215472,0.30622315,3797.1,3795.6,0.001]
[1760700215667,0.4287,3797.2,3795.6,0.001]
[1760700215882,2.6334021,3797.4,3796.2,2.63420433]
[1760700216206,0.4287,3797.2,3796.2,2.63419503]
[1760700216391,1.0623,3797.8,3795.6,0.001]
[1760700216594,1.728,3797.7,3796.7,2.63384423]
[1760700216804,0.54693772,3797.6,3796.7,2.63380003]
[1760700216973,0.4287,3797.8,3796.0,0.0391]
[1760700217170,0.4287,3797.8,3795.6,0.001]
[1760700217491,2.63339043,3797.4,3795.6,0.001]
[1760700217816,0.4287,3797.8,3796.3,2.63407728]
[1760700217817,2.63332152,3797.5,3796.3,2.63407728]
[1760700218119,2.63335501,3797.5,3796.2,2.63416482]
[1760700218270,0.52665954,3797.4,3796.3,2.63408566]
[1760700218476,0.52665954,3797.4,3795.6,0.001]
[1760700218697,0.4287,3797.4,3795.6,0.001]
[1760700218896,0.04591738,3797.9,3795.6,0.001]
[1760700219101,0.6336,3798.1,3797.7,2.63312463]
[1760700219102,0.41315653,3798.1,3797.7,2.63312463]
[1760700219411,0.002,3798.6,3796.9,2.63372751]
[1760700219623,0.002,3798.6,3798.0,2.63294471]
[1760700219772,0.002,3798.6,3798.1,2.63289539]
[1760700219974,0.002,3798.6,3798.1,3.1594831]
[1760700220198,0.002,3798.6,3798.1,3.22491205]
[1760700220702,0.002,3798.6,3798.1,3.3297831]
[1760700220891,0.002,3798.6,3798.1,3.35611205]
[1760700221294,0.002,3798.6,3798.1,3.3297831]
[1760700221495,0.002,3798.6,3798.1,3.35611205]
[1760700221814,0.002,3798.6,3798.1,5.59049205]
[1760700221996,0.002,3798.6,3798.1,3.3297831]
[1760700222312,0.002,3798.6,3798.1,3.2906831]
[1760700222682,0.002,3798.6,3798.1,2.76409539]
[1760700223290,0.002,3798.6,3798.1,2.79042434]
[1760700223484,0.002,3798.6,3798.1,2.76409539]
[1760700224090,0.002,3798.6,3798.1,2.80319539]
[1760700224497,0.002,3798.6,3798.1,2.76409539]
[1760700224805,0.002,3798.6,3798.1,2.63289539]
[1760700224978,0.002,3798.6,3798.1,3.2117031]
[1760700225307,0.002,3798.6,3798.1,3.23803205]
[1760700225684,0.002,3798.6,3798.1,3.2117031]
[1760700226305,0.002,3799.0,3798.9,2.63234094]
[1760700226512,0.002,3799.0,3798.9,2.89557503]
[1760700226710,0.002,3799.0,3798.9,2.93467503]
[1760700226888,0.002,3799.0,3798.9,2.96099843]
[1760700227210,0.002,3799.0,3798.9,4.68899843]
[1760700227411,0.002,3799.0,3798.9,16.45054243]
[1760700227612,0.002,3799.0,3798.9,10.90672803]
[1760700227816,0.002,3799.0,3798.9,11.54032803]
[1760700228182,0.002,3799.0,3798.9,14.64632803]
[1760700228395,0.002,3799.0,3798.9,17.55441803]
[1760700229515,0.002,3801.7,3798.9,17.55441803]
[1760700229516,0.002,3801.7,3801.4,2.63060977]
[1760700229816,0.002,3801.7,3801.6,2.63047138]
[1760700230218,0.002,3801.7,3801.6,3.1565795]
[1760700230917,0.002,3801.7,3801.6,6.28688421]
[1760700231116,0.002,3801.7,3801.6,6.2605795]
[1760700231344,0.002,3801.7,3801.6,3.1565795]
[1760700231521,0.002,3801.7,3799.8,0.0391]
[1760700231522,0.4437,3801.7,3799.8,0.0391]
[1760700231722,0.002,3801.7,3801.6,2.63047138]
[1760700232288,0.002,3801.7,3801.6,2.65677609]
[1760700232511,0.002,3801.7,3800.9,3.102]
[1760700232717,0.002,3801.7,3801.6,2.63047138]
[1760700232917,0.002,3801.7,3801.6,11.52892238]
[1760700233219,0.002,3801.7,3801.6,5.73247138]
[1760700233598,0.002,3801.7,3801.6,9.79485138]
[1760700233788,0.002,3801.7,3801.6,5.73247138]
[1760700233995,0.002,3801.7,3801.6,11.79125505]
[1760700234528,0.002,3801.7,3801.6,6.56877505]